[Event "*** Titled Tuesday Blitz"]
[Site "Chess.com"]
[Date "2020.02.04"]
[Round "3"]
[White "Terao90"]
[Black "VladimirBelous"]
[Result "0-1"]
[WhiteElo "2427"]
[BlackElo "2749"]
[TimeControl "180+2"]
[EndTime "13:38:43 PST"]
[Termination "VladimirBelous won by resignation"]

1. d4 {[%clk 0:03:01.9]} 1... Nf6 {[%clk 0:02:36.6]} 2. Nf3 {[%clk 0:03:01]}
2... g6 {[%clk 0:02:37.3]} 3. Bg5 {[%clk 0:03:00.5]} 3... Bg7 {[%clk 0:02:38.2]}
4. Nbd2 {[%clk 0:03:01.7]} 4... O-O {[%clk 0:02:37.2]} 5. e3 {[%clk 0:02:56.8]}
5... c5 {[%clk 0:02:37.1]} 6. c3 {[%clk 0:02:57.6]} 6... b6 {[%clk 0:02:37.5]}
7. dxc5 {[%clk 0:02:49.3]} 7... bxc5 {[%clk 0:02:38.4]} 8. Bxf6 {[%clk
0:02:47.6]} 8... Bxf6 {[%clk 0:02:39.4]} 9. Ne4 {[%clk 0:02:48.2]} 9... Bg7
{[%clk 0:02:35.1]} 10. Nxc5 {[%clk 0:02:47]} 10... Qb6 {[%clk 0:02:36.1]} 11.
Nb3 {[%clk 0:02:47.5]} 11... a5 {[%clk 0:02:36.1]} 12. a4 {[%clk 0:02:43.9]}
12... Nc6 {[%clk 0:02:12.8]} 13. Be2 {[%clk 0:02:38.4]} 13... Rb8 {[%clk
0:02:13.4]} 14. Nfd2 {[%clk 0:02:36.1]} 14... d5 {[%clk 0:02:10.4]} 15. O-O
{[%clk 0:02:34.8]} 15... e5 {[%clk 0:02:11.1]} 16. Bb5 {[%clk 0:02:19.9]} 16...
Be6 {[%clk 0:01:58.9]} 17. Qe2 {[%clk 0:02:01.1]} 17... Rfc8 {[%clk 0:01:41.8]}
18. Rfc1 {[%clk 0:02:00.7]} 18... h5 {[%clk 0:01:36.9]} 19. h3 {[%clk
0:02:00.7]} 19... Bh6 {[%clk 0:01:33]} 20. Rd1 {[%clk 0:01:58.1]} 20... Na7
{[%clk 0:01:14.1]} 21. Ba6 {[%clk 0:01:30.1]} 21... Rc7 {[%clk 0:01:07]} 22.
Rab1 {[%clk 0:01:30.8]} 22... d4 {[%clk 0:00:54.5]} 23. Nc1 {[%clk 0:01:10.6]}
23... dxe3 {[%clk 0:00:51.1]} 24. fxe3 {[%clk 0:01:10.5]} 24... Qxe3+ {[%clk
0:00:37.6]} 25. Qxe3 {[%clk 0:01:08.8]} 25... Bxe3+ {[%clk 0:00:39.5]} 26. Kf1
{[%clk 0:01:10.5]} 26... Bxd2 {[%clk 0:00:31.5]} 27. Rxd2 {[%clk 0:01:10.9]}
27... Rxc3 {[%clk 0:00:33.3]} 28. Ne2 {[%clk 0:01:04.2]} 28... Rc6 {[%clk
0:00:31.3]} 29. Bd3 {[%clk 0:01:01.8]} 29... Rd6 {[%clk 0:00:32.8]} 30. Ke1
{[%clk 0:00:58.5]} 30... Nc6 {[%clk 0:00:22.6]} 31. Bb5 {[%clk 0:00:57.8]} 31...
Rxd2 {[%clk 0:00:21.6]} 32. Kxd2 {[%clk 0:00:59.7]} 32... Nb4 {[%clk 0:00:23.5]}
33. Nc3 {[%clk 0:00:59.6]} 33... Rd8+ {[%clk 0:00:25]} 34. Ke2 {[%clk 0:00:57]}
34... Bb3 {[%clk 0:00:26.3]} 35. g4 {[%clk 0:00:48]} 35... hxg4 {[%clk
0:00:27.1]} 36. hxg4 {[%clk 0:00:49.9]} 36... Kg7 {[%clk 0:00:28.7]} 37. Rf1
{[%clk 0:00:46.4]} 37... Rd4 {[%clk 0:00:29.5]} 38. g5 {[%clk 0:00:44.9]} 38...
Rg4 {[%clk 0:00:30.9]} 39. Be8 {[%clk 0:00:39.7]} 39... Rxg5 {[%clk 0:00:31.8]}
40. Ke3 {[%clk 0:00:39.1]} 40... Rg3+ {[%clk 0:00:32.4]} 41. Kd2 {[%clk
0:00:40]} 41... f5 {[%clk 0:00:32.4]} 42. Bb5 {[%clk 0:00:36.6]} 42... Rg2+
{[%clk 0:00:32.9]} 43. Ne2 {[%clk 0:00:36.4]} 43... f4 {[%clk 0:00:30.9]} 44.
Kc3 {[%clk 0:00:35.7]} 44... Bxa4 {[%clk 0:00:31.8]} 0-1

[Event "*** Titled Tuesday Blitz"]
[Site "Chess.com"]
[Date "2020.02.04"]
[Round "3"]
[White "Irishchessman16"]
[Black "Mikhail_Golubev"]
[Result "0-1"]
[WhiteElo "2255"]
[BlackElo "2555"]
[TimeControl "180+2"]
[EndTime "13:38:43 PST"]
[Termination "Mikhail_Golubev won by resignation"]

1. d4 {[%clk 0:03:01]} 1... Nf6 {[%clk 0:03:00]} 2. c4 {[%clk 0:03:01]} 2... g6
{[%clk 0:03:00.9]} 3. Nc3 {[%clk 0:02:55]} 3... Bg7 {[%clk 0:03:02.4]} 4. e4
{[%clk 0:02:55.4]} 4... d6 {[%clk 0:03:03.5]} 5. h3 {[%clk 0:02:56.6]} 5... O-O
{[%clk 0:03:03.9]} 6. Be3 {[%clk 0:02:57.2]} 6... Nc6 {[%clk 0:03:03.2]} 7. d5
{[%clk 0:02:43]} 7... Ne5 {[%clk 0:03:03.4]} 8. f4 {[%clk 0:02:44.5]} 8... Ned7
{[%clk 0:03:04.1]} 9. g4 {[%clk 0:02:38.8]} 9... c6 {[%clk 0:03:01.8]} 10. Qd2
{[%clk 0:02:35.9]} 10... b5 {[%clk 0:02:14.8]} 11. dxc6 {[%clk 0:02:23.3]} 11...
b4 {[%clk 0:02:15]} 12. Nd5 {[%clk 0:01:54.3]} 12... Nxe4 {[%clk 0:02:13.8]} 13.
Qg2 {[%clk 0:01:42.1]} 13... Ndc5 {[%clk 0:02:06.7]} 14. Bxc5 {[%clk 0:01:35.5]}
14... Nxc5 {[%clk 0:02:07]} 15. O-O-O {[%clk 0:01:28.1]} 15... e6 {[%clk
0:01:38.2]} 16. c7 {[%clk 0:01:16.7]} 16... Qd7 {[%clk 0:01:37]} 17. Nxb4 {[%clk
0:00:50.7]} 17... Bb7 {[%clk 0:01:30.5]} 18. Nf3 {[%clk 0:00:50.7]} 18... Qa4
{[%clk 0:01:01.9]} 19. a3 {[%clk 0:00:42.6]} 19... Qb3 {[%clk 0:01:02.4]} 20.
Nd3 {[%clk 0:00:35.1]} 20... Bxf3 {[%clk 0:00:36.9]} 21. Qxf3 {[%clk 0:00:35.2]}
21... Bxb2+ {[%clk 0:00:30.6]} 22. Kd2 {[%clk 0:00:34.1]} 22... Bc3+ {[%clk
0:00:20.5]} 23. Ke2 {[%clk 0:00:34.4]} 23... Qc2+ {[%clk 0:00:19.3]} 24. Ke3
{[%clk 0:00:35.2]} 24... e5 {[%clk 0:00:11.1]} 25. Nxc5 {[%clk 0:00:26.2]} 25...
Bd4+ {[%clk 0:00:10.7]} 26. Rxd4 {[%clk 0:00:25.1]} 26... exd4+ {[%clk
0:00:11.6]} 27. Kxd4 {[%clk 0:00:27]} 27... dxc5+ {[%clk 0:00:11.6]} 28. Kxc5
{[%clk 0:00:28.9]} 28... Qb2 {[%clk 0:00:11.9]} 29. Qc6 {[%clk 0:00:21.1]} 29...
Qf2+ {[%clk 0:00:11.4]} 30. Kb5 {[%clk 0:00:21.1]} 30... Rab8+ {[%clk
0:00:10.1]} 31. cxb8=Q {[%clk 0:00:20.7]} 31... Rxb8+ {[%clk 0:00:10.5]} 32. Ka5
{[%clk 0:00:20.9]} 32... Qd2+ {[%clk 0:00:10.4]} 33. Ka4 {[%clk 0:00:22.1]}
33... Qc2+ {[%clk 0:00:11]} 34. Ka5 {[%clk 0:00:23.5]} 34... Qc3+ {[%clk
0:00:11.5]} 35. Ka4 {[%clk 0:00:24.4]} 35... Qb3+ {[%clk 0:00:12.2]} 36. Ka5
{[%clk 0:00:25.5]} 0-1

[Event "*** Titled Tuesday Blitz"]
[Site "Chess.com"]
[Date "2020.02.04"]
[Round "3"]
[White "GoingKronos"]
[Black "SONOFHOLYGOD"]
[Result "1-0"]
[WhiteElo "2486"]
[BlackElo "2600"]
[TimeControl "180+2"]
[EndTime "13:38:44 PST"]
[Termination "GoingKronos won by checkmate"]

1. d4 {[%clk 0:02:59.8]} 1... Nf6 {[%clk 0:03:00]} 2. Nf3 {[%clk 0:03:00.5]}
2... e6 {[%clk 0:03:01.1]} 3. c4 {[%clk 0:02:58.9]} 3... Bb4+ {[%clk 0:03:01.7]}
4. Bd2 {[%clk 0:02:59.4]} 4... Be7 {[%clk 0:03:02.6]} 5. g3 {[%clk 0:02:57.7]}
5... d5 {[%clk 0:03:04.2]} 6. Bg2 {[%clk 0:02:58.7]} 6... O-O {[%clk 0:03:05.7]}
7. O-O {[%clk 0:02:59.7]} 7... c6 {[%clk 0:03:07.3]} 8. Qc2 {[%clk 0:03:01]}
8... Nbd7 {[%clk 0:03:08.9]} 9. Rd1 {[%clk 0:03:02]} 9... b6 {[%clk 0:03:10]}
10. b3 {[%clk 0:03:03.2]} 10... Ba6 {[%clk 0:03:09.4]} 11. Bc1 {[%clk
0:03:00.6]} 11... Ne4 {[%clk 0:03:06.7]} 12. Nbd2 {[%clk 0:02:59.2]} 12... f5
{[%clk 0:03:06.8]} 13. Bb2 {[%clk 0:03:00.1]} 13... Rc8 {[%clk 0:03:07.4]} 14.
Rac1 {[%clk 0:03:00.7]} 14... Bd6 {[%clk 0:03:07.7]} 15. Ne5 {[%clk 0:02:58]}
15... Nxe5 {[%clk 0:03:00.5]} 16. dxe5 {[%clk 0:02:59.2]} 16... Bc5 {[%clk
0:02:37.2]} 17. e3 {[%clk 0:02:45.1]} 17... Qg5 {[%clk 0:02:21.2]} 18. Nf3
{[%clk 0:02:42.6]} 18... Qh6 {[%clk 0:02:22]} 19. Bd4 {[%clk 0:02:43.5]} 19...
Ba3 {[%clk 0:02:20.6]} 20. Bb2 {[%clk 0:02:42.4]} 20... Be7 {[%clk 0:02:14.6]}
21. h4 {[%clk 0:02:05.1]} 21... g5 {[%clk 0:02:12.7]} 22. hxg5 {[%clk
0:02:05.5]} 22... Bxg5 {[%clk 0:01:51.7]} 23. Nxg5 {[%clk 0:02:03]} 23... Qxg5
{[%clk 0:01:51.9]} 24. Ba3 {[%clk 0:01:40]} 24... Rf7 {[%clk 0:01:52.4]} 25.
cxd5 {[%clk 0:01:27.9]} 25... cxd5 {[%clk 0:01:47.8]} 26. Qb2 {[%clk 0:01:28.6]}
26... h5 {[%clk 0:01:12.1]} 27. Rxc8+ {[%clk 0:01:22.4]} 27... Bxc8 {[%clk
0:01:14]} 28. Qc2 {[%clk 0:00:29.3]} 28... Ba6 {[%clk 0:01:11.4]} 29. Qc6 {[%clk
0:00:26.1]} 29... h4 {[%clk 0:00:30.9]} 30. Qxe6 {[%clk 0:00:21]} 30... Nxg3
{[%clk 0:00:27.8]} 31. Rxd5 {[%clk 0:00:18.2]} 31... h3 {[%clk 0:00:21.4]} 32.
fxg3 {[%clk 0:00:15.7]} 32... Qxg3 {[%clk 0:00:17.2]} 33. Rd8+ {[%clk
0:00:07.9]} 33... Kg7 {[%clk 0:00:17.7]} 34. Bf8+ {[%clk 0:00:09]} 34... Rxf8
{[%clk 0:00:16.8]} 35. Rd7+ {[%clk 0:00:10.2]} 35... Rf7 {[%clk 0:00:11]} 36.
Qxf7+ {[%clk 0:00:11.3]} 36... Kh8 {[%clk 0:00:12.6]} 37. Qh7# {[%clk
0:00:12.1]} 1-0

[Event "*** Titled Tuesday Blitz"]
[Site "Chess.com"]
[Date "2020.02.04"]
[Round "3"]
[White "matiss90"]
[Black "TristanCalistri"]
[Result "0-1"]
[WhiteElo "2521"]
[BlackElo "2269"]
[TimeControl "180+2"]
[EndTime "13:38:54 PST"]
[Termination "TristanCalistri won by resignation"]

1. e4 {[%clk 0:03:01.9]} 1... e5 {[%clk 0:03:00.4]} 2. Nf3 {[%clk 0:02:56]} 2...
d6 {[%clk 0:03:01.5]} 3. d4 {[%clk 0:02:56]} 3... exd4 {[%clk 0:03:02.8]} 4.
Nxd4 {[%clk 0:02:56.5]} 4... Nf6 {[%clk 0:03:04.3]} 5. Nc3 {[%clk 0:02:57.3]}
5... Be7 {[%clk 0:03:05.9]} 6. Nf5 {[%clk 0:02:54.5]} 6... Bxf5 {[%clk
0:03:02.2]} 7. exf5 {[%clk 0:02:55.4]} 7... O-O {[%clk 0:03:02.4]} 8. Qf3 {[%clk
0:02:56.6]} 8... d5 {[%clk 0:02:57.2]} 9. g4 {[%clk 0:02:51.7]} 9... Bb4 {[%clk
0:02:53.7]} 10. Bd2 {[%clk 0:02:45.5]} 10... Re8+ {[%clk 0:02:42.2]} 11. Be2
{[%clk 0:02:40.6]} 11... d4 {[%clk 0:02:32.5]} 12. Nb1 {[%clk 0:02:39.6]} 12...
Nc6 {[%clk 0:02:16]} 13. a3 {[%clk 0:02:28.5]} 13... Bxd2+ {[%clk 0:01:33.3]}
14. Kxd2 {[%clk 0:02:26.4]} 14... Ne4+ {[%clk 0:01:27]} 15. Kd1 {[%clk
0:02:15.2]} 15... d3 {[%clk 0:01:25.8]} 16. Bxd3 {[%clk 0:02:03.3]} 16... Nd4
{[%clk 0:01:20.1]} 17. Qg2 {[%clk 0:01:48.8]} 17... Qd5 {[%clk 0:01:19.3]} 18.
Rg1 {[%clk 0:01:27.2]} 18... Nf3 {[%clk 0:01:10.8]} 19. Nc3 {[%clk 0:01:14.1]}
19... Nxc3+ {[%clk 0:00:53.9]} 20. bxc3 {[%clk 0:01:16]} 20... Rad8 {[%clk
0:00:48.7]} 21. Kc1 {[%clk 0:01:12.9]} 21... Nxg1 {[%clk 0:00:48]} 22. Qxg1
{[%clk 0:01:13.5]} 22... Rd6 {[%clk 0:00:41.4]} 23. g5 {[%clk 0:01:10.3]} 23...
Qe5 {[%clk 0:00:34.1]} 24. Kb2 {[%clk 0:00:46.4]} 24... Rb6+ {[%clk 0:00:34.3]}
25. Ka2 {[%clk 0:00:46.4]} 25... Qxc3 {[%clk 0:00:34.2]} 26. Rb1 {[%clk
0:00:47.5]} 26... Re5 {[%clk 0:00:27.5]} 27. Rxb6 {[%clk 0:00:38.4]} 27... axb6
{[%clk 0:00:28.2]} 28. Qb1 {[%clk 0:00:29.6]} 28... Re1 {[%clk 0:00:21.8]} 29.
Qb2 {[%clk 0:00:28]} 29... Qxb2+ {[%clk 0:00:22.6]} 30. Kxb2 {[%clk 0:00:29.9]}
30... Rh1 {[%clk 0:00:23.7]} 31. Be4 {[%clk 0:00:25.1]} 31... Rxh2 {[%clk
0:00:24.7]} 32. Bxb7 {[%clk 0:00:26.4]} 32... Rxf2 {[%clk 0:00:25.8]} 33. Be4
{[%clk 0:00:26.2]} 33... Rf4 {[%clk 0:00:25.9]} 34. Bd3 {[%clk 0:00:27]} 34...
Rg4 {[%clk 0:00:26.2]} 35. g6 {[%clk 0:00:27.9]} 35... fxg6 {[%clk 0:00:26.1]}
36. fxg6 {[%clk 0:00:29.8]} 36... hxg6 {[%clk 0:00:27.6]} 37. Kb3 {[%clk
0:00:27.9]} 37... Rg3 {[%clk 0:00:28.2]} 38. Kb4 {[%clk 0:00:28.4]} 38... g5
{[%clk 0:00:29.4]} 39. Kb5 {[%clk 0:00:29.3]} 39... Re3 {[%clk 0:00:27.9]} 40.
Kc6 {[%clk 0:00:29.8]} 40... Re7 {[%clk 0:00:28.3]} 41. Bf5 {[%clk 0:00:30.8]}
41... Kf7 {[%clk 0:00:28.1]} 42. c4 {[%clk 0:00:31.2]} 42... Kf6 {[%clk
0:00:28.4]} 43. Bg4 {[%clk 0:00:32.1]} 43... Ke5 {[%clk 0:00:29.3]} 44. a4
{[%clk 0:00:33]} 44... Kf4 {[%clk 0:00:30.4]} 45. Bd1 {[%clk 0:00:33.2]} 45...
g4 {[%clk 0:00:30.9]} 46. c5 {[%clk 0:00:34.5]} 46... g3 {[%clk 0:00:31.8]} 47.
cxb6 {[%clk 0:00:33.3]} 47... cxb6 {[%clk 0:00:32]} 0-1

[Event "*** Titled Tuesday Blitz"]
[Site "Chess.com"]
[Date "2020.02.04"]
[Round "3"]
[White "Pultis"]
[Black "Duhless"]
[Result "0-1"]
[WhiteElo "2728"]
[BlackElo "3057"]
[TimeControl "180+2"]
[EndTime "13:38:55 PST"]
[Termination "Duhless won by resignation"]

1. d4 {[%clk 0:03:01.9]} 1... Nf6 {[%clk 0:03:00.1]} 2. Nf3 {[%clk 0:02:55.2]}
2... d5 {[%clk 0:02:59.4]} 3. g3 {[%clk 0:02:53.8]} 3... g6 {[%clk 0:02:53.1]}
4. Bg2 {[%clk 0:02:54.4]} 4... Bg7 {[%clk 0:02:53.7]} 5. O-O {[%clk 0:02:55.4]}
5... O-O {[%clk 0:02:55.2]} 6. c4 {[%clk 0:02:34.3]} 6... c6 {[%clk 0:02:54.2]}
7. cxd5 {[%clk 0:02:35.2]} 7... cxd5 {[%clk 0:02:54.8]} 8. Ne5 {[%clk
0:02:36.3]} 8... Ng4 {[%clk 0:02:49]} 9. Nxg4 {[%clk 0:02:33.6]} 9... Bxg4
{[%clk 0:02:48.5]} 10. Nc3 {[%clk 0:02:34]} 10... Nc6 {[%clk 0:02:42.3]} 11. h3
{[%clk 0:02:33.3]} 11... Bd7 {[%clk 0:02:42.3]} 12. Nxd5 {[%clk 0:02:32]} 12...
Nxd4 {[%clk 0:02:39.5]} 13. Bg5 {[%clk 0:02:32.1]} 13... Re8 {[%clk 0:02:25.9]}
14. Rc1 {[%clk 0:02:15]} 14... Bxh3 {[%clk 0:01:50.3]} 15. Nxe7+ {[%clk
0:02:04.7]} 15... Rxe7 {[%clk 0:01:50.2]} 16. Bxh3 {[%clk 0:02:05.7]} 16...
Nxe2+ {[%clk 0:01:42.3]} 17. Kh2 {[%clk 0:01:48.4]} 17... f6 {[%clk 0:01:09.3]}
18. Qb3+ {[%clk 0:01:40.8]} 18... Kh8 {[%clk 0:01:09.2]} 19. Rcd1 {[%clk
0:01:41.3]} 19... Nd4 {[%clk 0:01:08.9]} 20. Rxd4 {[%clk 0:01:20]} 20... Qxd4
{[%clk 0:01:10.8]} 21. Be3 {[%clk 0:01:21.3]} 21... Qd8 {[%clk 0:01:06]} 22. Rd1
{[%clk 0:01:22.1]} 22... Qg8 {[%clk 0:01:06.4]} 23. Qb4 {[%clk 0:01:22.2]} 23...
Qf7 {[%clk 0:00:35]} 24. Bc5 {[%clk 0:01:06.3]} 24... Rc7 {[%clk 0:00:35.6]} 25.
Bxa7 {[%clk 0:00:48.1]} 25... Bf8 {[%clk 0:00:27.4]} 26. Qd4 {[%clk 0:00:44.8]}
26... Rc6 {[%clk 0:00:27.6]} 27. Qe3 {[%clk 0:00:36.1]} 27... Re8 {[%clk
0:00:24.4]} 28. Qf3 {[%clk 0:00:36.8]} 28... Rd6 {[%clk 0:00:19.7]} 29. Rxd6
{[%clk 0:00:23]} 29... Bxd6 {[%clk 0:00:20.3]} 30. a4 {[%clk 0:00:24.1]} 30...
Be5 {[%clk 0:00:14.8]} 31. b4 {[%clk 0:00:23.1]} 31... b5 {[%clk 0:00:15.6]} 32.
Qc6 {[%clk 0:00:20.8]} 32... bxa4 {[%clk 0:00:14.5]} 33. Bg2 {[%clk 0:00:10.7]}
33... a3 {[%clk 0:00:14.7]} 34. Qa4 {[%clk 0:00:12.2]} 34... a2 {[%clk
0:00:13.9]} 35. Bd5 {[%clk 0:00:13.8]} 35... Qxd5 {[%clk 0:00:13.2]} 36. Qxe8+
{[%clk 0:00:13.8]} 36... Qg8 {[%clk 0:00:14.8]} 0-1

[Event "*** Titled Tuesday Blitz"]
[Site "Chess.com"]
[Date "2020.02.04"]
[Round "3"]
[White "Joshukid"]
[Black "LivajaM"]
[Result "1-0"]
[WhiteElo "2605"]
[BlackElo "2401"]
[TimeControl "180+2"]
[EndTime "13:38:55 PST"]
[Termination "Joshukid won by checkmate"]

1. e4 {[%clk 0:03:01.9]} 1... c5 {[%clk 0:02:58.7]} 2. Nf3 {[%clk 0:03:03]} 2...
Nc6 {[%clk 0:02:58.7]} 3. Bb5 {[%clk 0:03:04.1]} 3... g6 {[%clk 0:02:59.2]} 4.
Bxc6 {[%clk 0:03:04.1]} 4... bxc6 {[%clk 0:02:59.6]} 5. O-O {[%clk 0:02:48.1]}
5... Bg7 {[%clk 0:03:00.1]} 6. Re1 {[%clk 0:02:48.5]} 6... e5 {[%clk 0:03:00.9]}
7. c3 {[%clk 0:02:44.6]} 7... d6 {[%clk 0:03:01.9]} 8. d4 {[%clk 0:02:42.3]}
8... cxd4 {[%clk 0:02:54]} 9. cxd4 {[%clk 0:02:43.7]} 9... Bg4 {[%clk
0:02:48.7]} 10. dxe5 {[%clk 0:02:40.7]} 10... Bxf3 {[%clk 0:02:48.5]} 11. Qxf3
{[%clk 0:02:40.7]} 11... Bxe5 {[%clk 0:02:46.8]} 12. Nc3 {[%clk 0:02:37.7]}
12... Qf6 {[%clk 0:02:47.3]} 13. Qd3 {[%clk 0:02:30]} 13... Ne7 {[%clk 0:02:43]}
14. f4 {[%clk 0:02:25.1]} 14... Bd4+ {[%clk 0:02:40.8]} 15. Kh1 {[%clk
0:02:18.3]} 15... O-O {[%clk 0:02:40.2]} 16. e5 {[%clk 0:02:09.2]} 16... dxe5
{[%clk 0:02:39.9]} 17. fxe5 {[%clk 0:02:09.7]} 17... Bxe5 {[%clk 0:02:39.7]} 18.
Ne4 {[%clk 0:02:08.7]} 18... Qf5 {[%clk 0:02:36.3]} 19. Bh6 {[%clk 0:01:56.7]}
19... Rfd8 {[%clk 0:02:35.4]} 20. Qe2 {[%clk 0:01:42.2]} 20... Nd5 {[%clk
0:02:29.1]} 21. Rf1 {[%clk 0:01:42.3]} 21... Qd7 {[%clk 0:01:52.5]} 22. Rad1
{[%clk 0:01:34.1]} 22... Re8 {[%clk 0:01:51.8]} 23. Qf3 {[%clk 0:01:34.9]} 23...
f5 {[%clk 0:01:50.9]} 24. Nc3 {[%clk 0:01:19.8]} 24... Bxc3 {[%clk 0:01:37.2]}
25. bxc3 {[%clk 0:01:21.7]} 25... Qe6 {[%clk 0:01:35]} 26. c4 {[%clk 0:01:15.6]}
26... Nf6 {[%clk 0:01:34.9]} 27. h3 {[%clk 0:01:08.4]} 27... Qxc4 {[%clk
0:01:29.2]} 28. Rd6 {[%clk 0:01:06.2]} 28... Ne4 {[%clk 0:01:27.9]} 29. Rfd1
{[%clk 0:01:02.4]} 29... Nxd6 {[%clk 0:01:23.2]} 30. Rxd6 {[%clk 0:01:03.3]}
30... Qe4 {[%clk 0:01:21]} 31. Qb3+ {[%clk 0:01:01.2]} 31... Kh8 {[%clk
0:01:19]} 32. Bd2 {[%clk 0:00:45.9]} 32... Kg7 {[%clk 0:01:03.5]} 33. Bc3+
{[%clk 0:00:24.1]} 33... Kh6 {[%clk 0:00:59.9]} 34. Rd4 {[%clk 0:00:20.9]} 34...
Qe7 {[%clk 0:00:46.6]} 35. Qc4 {[%clk 0:00:22.1]} 35... g5 {[%clk 0:00:38.7]}
36. Qxc6+ {[%clk 0:00:23.1]} 36... Kh5 {[%clk 0:00:34.4]} 37. g4+ {[%clk
0:00:23.3]} 37... fxg4 {[%clk 0:00:22.2]} 38. hxg4+ {[%clk 0:00:24.5]} 38... Kh4
{[%clk 0:00:21.2]} 39. Qh6+ {[%clk 0:00:25.5]} 39... Kg3 {[%clk 0:00:21.6]} 40.
Qh2+ {[%clk 0:00:26.4]} 40... Kf3 {[%clk 0:00:22.9]} 41. Qg2+ {[%clk 0:00:24.2]}
41... Ke3 {[%clk 0:00:24.1]} 42. Qg3+ {[%clk 0:00:23.4]} 42... Ke2 {[%clk
0:00:21.5]} 43. Rd2+ {[%clk 0:00:25]} 43... Kf1 {[%clk 0:00:20.5]} 44. Qg1#
{[%clk 0:00:26.7]} 1-0

[Event "*** Titled Tuesday Blitz"]
[Site "Chess.com"]
[Date "2020.02.04"]
[Round "3"]
[White "MisiekZielony"]
[Black "zurzan"]
[Result "1-0"]
[WhiteElo "2335"]
[BlackElo "1950"]
[TimeControl "180+2"]
[EndTime "13:38:57 PST"]
[Termination "MisiekZielony won by resignation"]

1. c4 {[%clk 0:03:01.9]} 1... f5 {[%clk 0:02:59.7]} 2. e4 {[%clk 0:02:59.1]}
2... Nf6 {[%clk 0:03:01.6]} 3. e5 {[%clk 0:02:53.9]} 3... Ng8 {[%clk 0:03:02.1]}
4. d4 {[%clk 0:02:54.5]} 4... g6 {[%clk 0:02:59.5]} 5. h4 {[%clk 0:02:48.1]}
5... h5 {[%clk 0:02:38.6]} 6. Nf3 {[%clk 0:02:47.1]} 6... Nh6 {[%clk 0:02:30.7]}
7. Nc3 {[%clk 0:02:39.8]} 7... e6 {[%clk 0:02:28.5]} 8. Bg5 {[%clk 0:02:37.9]}
8... Be7 {[%clk 0:02:28.8]} 9. Qd2 {[%clk 0:02:38.6]} 9... Nf7 {[%clk
0:02:25.6]} 10. Bxe7 {[%clk 0:02:29.1]} 10... Qxe7 {[%clk 0:02:26.3]} 11. O-O-O
{[%clk 0:02:29.1]} 11... Nc6 {[%clk 0:02:21.7]} 12. g3 {[%clk 0:02:26.7]} 12...
b6 {[%clk 0:02:19.9]} 13. Bg2 {[%clk 0:02:27.1]} 13... Bb7 {[%clk 0:02:20.7]}
14. b3 {[%clk 0:02:27.6]} 14... O-O-O {[%clk 0:02:21.3]} 15. Rhe1 {[%clk
0:02:28.5]} 15... Qb4 {[%clk 0:02:05.6]} 16. Ne2 {[%clk 0:02:12.8]} 16... Qxd2+
{[%clk 0:02:03.2]} 17. Rxd2 {[%clk 0:02:13.5]} 17... a5 {[%clk 0:02:03.8]} 18.
Nf4 {[%clk 0:02:13.4]} 18... Rhg8 {[%clk 0:02:02.4]} 19. d5 {[%clk 0:02:02.9]}
19... exd5 {[%clk 0:01:38.9]} 20. cxd5 {[%clk 0:02:03.1]} 20... Nb4 {[%clk
0:01:36.3]} 21. Ng5 {[%clk 0:01:43.4]} 21... Nxg5 {[%clk 0:01:34.1]} 22. hxg5
{[%clk 0:01:43.4]} 22... Rde8 {[%clk 0:01:20.1]} 23. Kb2 {[%clk 0:01:39]} 23...
Na6 {[%clk 0:01:19]} 24. Re3 {[%clk 0:01:11.8]} 24... Nc5 {[%clk 0:01:19.4]} 25.
a3 {[%clk 0:01:11.5]} 25... Rg7 {[%clk 0:00:49.9]} 26. b4 {[%clk 0:01:08.4]}
26... axb4 {[%clk 0:00:34.5]} 27. axb4 {[%clk 0:01:08.6]} 27... Na6 {[%clk
0:00:36]} 28. Kb3 {[%clk 0:01:04.8]} 28... c5 {[%clk 0:00:36.5]} 29. dxc6 {[%clk
0:00:59.8]} 29... dxc6 {[%clk 0:00:36.6]} 30. Rc2 {[%clk 0:00:56.8]} 30... Kc7
{[%clk 0:00:34.5]} 31. Nd5+ {[%clk 0:00:46.7]} 31... Kb8 {[%clk 0:00:34.5]} 32.
Nxb6 {[%clk 0:00:43.2]} 32... Ka7 {[%clk 0:00:34.4]} 33. Nc4 {[%clk 0:00:41.1]}
33... c5 {[%clk 0:00:30.7]} 34. Nd6 {[%clk 0:00:37.7]} 34... Bxg2 {[%clk
0:00:26.5]} 35. Nxe8 {[%clk 0:00:37.5]} 35... Rb7 {[%clk 0:00:27.2]} 36. Nd6
{[%clk 0:00:27.3]} 36... Rxb4+ {[%clk 0:00:29.1]} 37. Kc3 {[%clk 0:00:25.7]}
37... Bd5 {[%clk 0:00:28.8]} 38. e6 {[%clk 0:00:22.2]} 38... Rb3+ {[%clk
0:00:29.7]} 39. Kd2 {[%clk 0:00:21.8]} 39... Rxe3 {[%clk 0:00:30.8]} 40. Kxe3
{[%clk 0:00:22.8]} 40... Bxe6 {[%clk 0:00:32.7]} 41. Kf4 {[%clk 0:00:20.5]}
41... Nb4 {[%clk 0:00:33.8]} 42. Re2 {[%clk 0:00:18.6]} 42... Nd3+ {[%clk
0:00:34.2]} 43. Ke3 {[%clk 0:00:17.6]} 43... Bc4 {[%clk 0:00:35.5]} 44. Nxc4
{[%clk 0:00:16.6]} 44... Nc1 {[%clk 0:00:36.5]} 45. Rc2 {[%clk 0:00:16.1]} 45...
Ka6 {[%clk 0:00:38.4]} 46. Rxc1 {[%clk 0:00:16.1]} 46... Kb5 {[%clk 0:00:40.3]}
47. Ne5 {[%clk 0:00:16.7]} 1-0